bitfinex/quotes_SOLUSD_20220311
["timestamp","ask_amount","ask_price","bid_price","bid_amount"]
[1647000893803,32.3997,83.45,83.401,24.655]
[1647000894200,32.3997,83.45,83.402,56.93445163]
[1647000894400,14.42,83.45,83.402,56.93445163]
[1647000895401,14.42,83.47,83.41,17.9757]
[1647000895809,6.0,83.469,83.41,17.9757]
[1647000896832,27.41411452,83.468,83.41,17.9757]
[1647000897230,17.9765,83.46,83.41,17.9757]
[1647000897633,17.9765,83.46,83.403,24.514]
[1647000898233,27.41411452,83.459,83.403,24.514]
[1647000898932,17.9784,83.45,83.403,24.514]
[1647000899333,119.7,83.448,83.346,4.89112135]
[1647000899534,119.7,83.446,83.338,18.3777]
[1647000899732,119.7,83.444,83.338,18.3777]
[1647000899938,14.42,83.43,83.338,18.3777]
[1647000900233,14.42,83.43,83.353,62.34360237]
[1647000900532,32.4026,83.43,83.36,17.9856]
[1647000900734,14.42,83.43,83.36,17.9856]
[1647000901535,24.5202,83.441,83.36,17.9856]
[1647000902033,24.5202,83.441,83.354,119.7]
[1647000902034,24.5202,83.441,83.38,17.9797]
[1647000902233,24.5202,83.441,83.381,65.63387539]
[1647000902837,24.5202,83.441,83.382,23.8882]
[1647000903036,24.5202,83.441,83.383,6.0]
[1647000903836,14.42,83.44,83.383,6.0]
[1647000904037,14.42,83.44,83.39,17.9777]
[1647000904234,14.42,83.44,83.391,6.0]
[1647000904834,14.42,83.44,83.383,6.0]
[1647000905535,14.42,83.44,83.39,17.9791]
[1647000905740,14.42,83.44,83.391,6.0]
[1647000906539,6.0,83.439,83.391,6.0]
[1647000906738,5.994,83.444,83.391,6.0]
[1647000906940,6.0,83.443,83.391,6.0]
[1647000908040,3.04447957,83.445,83.391,6.0]
[1647000909244,3.04447957,83.445,83.39,17.9791]
[1647000909646,17.9804,83.44,83.39,17.9791]
[1647000910046,17.9804,83.44,83.382,23.8882]
[1647000910349,11.994,83.439,83.382,23.8882]
[1647000910748,17.9835,83.43,83.382,23.8882]
[1647000911149,122.74447957,83.429,83.381,65.63387539]
[1647000911347,14.42,83.42,83.381,65.63387539]
[1647000911548,14.42,83.42,83.361,23.5915]
[1647000912248,32.4064,83.42,83.361,23.5915]
[1647000912446,14.42,83.42,83.371,58.1353175]
[1647000912648,3.04447957,83.428,83.371,58.1353175]
[1647000913347,17.9851,83.42,83.371,58.1353175]
[1647000913546,5.995,83.427,83.371,58.1353175]
[1647000914148,119.7,83.426,83.371,58.1353175]
[1647000914548,17.985,83.42,83.371,58.1353175]
[1647000914948,119.7,83.419,83.371,58.1353175]
[1647000915148,125.7,83.419,83.371,58.1353175]
[1647000915847,6.0,83.419,83.371,58.1353175]
[1647000916049,6.0,83.418,83.371,58.1353175]
[1647000916251,5.995,83.427,83.371,58.1353175]
[1647000916457,6.0,83.426,83.371,58.1353175]
[1647000916652,5.995,83.425,83.371,58.1353175]
[1647000916852,17.9852,83.42,83.371,58.1353175]
[1647000917451,3.04447957,83.425,83.371,58.1353175]
[1647000917651,14.42,83.43,83.38,17.9827]
[1647000917851,14.42,83.44,83.38,17.9827]
[1647000918652,5.994,83.438,83.381,23.3639]
[1647000919255,5.994,83.438,83.39,17.9811]
[1647000919453,5.994,83.438,83.391,49.33671779]
[1647000919653,5.994,83.439,83.391,49.33671779]
[1647000919856,5.994,83.456,83.391,49.33671779]
[1647000920253,16.80448795,83.462,83.4,17.9789]
[1647000920455,5.993,83.469,83.401,24.5196]
[1647000920657,14.42,83.48,83.402,119.7]
[1647000920658,5.992,83.479,83.402,119.7]
[1647000920854,5.992,83.479,83.402,144.1518]
[1647000921055,7.0,83.55,83.402,144.1518]
[1647000921056,5.992,83.493,83.404,119.7]
[1647000921255,6.0,83.492,83.406,168.9679659]
[1647000921656,5.99,83.503,83.408,119.7]
[1647000921854,6.0,83.502,83.41,119.7]
[1647000922055,5.99,83.501,83.42,17.9731]
[1647000922254,33.40411452,83.501,83.422,61.50876298]
[1647000922657,27.41411452,83.5,83.423,6.0]
[1647000922855,5.99,83.499,83.422,61.50876298]
[1647000923057,5.99,83.499,83.44,17.9674]
[1647000923362,5.99,83.509,83.441,60.59249031]
[1647000923556,5.989,83.513,83.442,77.84]
[1647000923759,5.989,83.528,83.443,191.54]
[1647000923956,5.989,83.528,83.444,29.5339]
[1647000924157,33.40311452,83.528,83.46,17.958]
[1647000924359,27.41411452,83.527,83.46,17.958]
[1647000924557,27.41411452,83.527,83.461,54.36484451]
[1647000924957,6.0,83.526,83.461,54.36484451]
[1647000925358,27.41411452,83.525,83.461,54.36484451]
[1647000926058,27.41411452,83.525,83.47,17.9613]
[1647000926559,119.7,83.524,83.461,54.36484451]
[1647000926961,119.7,83.522,83.461,54.36484451]
[1647000927459,27.41411452,83.521,83.461,54.36484451]
[1647000928261,5.988,83.52,83.461,54.36484451]
[1647000928461,119.7,83.519,83.461,54.36484451]
[1647000928660,119.7,83.517,83.461,54.36484451]
[1647000928863,119.7,83.515,83.461,54.36484451]
[1647000929462,119.7,83.513,83.461,54.36484451]
[1647000929861,147.11411452,83.512,83.461,54.36484451]
[1647000930361,27.41411452,83.512,83.461,54.36484451]
[1647000930782,5.988,83.519,83.461,54.36484451]
[1647000930986,6.0,83.518,83.461,54.36484451]
[1647000931385,5.988,83.525,83.461,54.36484451]
[1647000931584,6.0,83.524,83.461,54.36484451]
[1647000931786,33.41411452,83.524,83.461,54.36484451]
[1647000931986,27.41411452,83.523,83.461,54.36484451]
[1647000932186,119.7,83.522,83.461,54.36484451]
[1647000932385,119.2,83.519,83.461,54.36484451]
[1647000932792,27.41411452,83.518,83.461,54.36484451]
[1647000932987,119.2,83.517,83.461,54.36484451]
[1647000933188,119.7,83.515,83.461,54.36484451]
[1647000933588,125.688,83.515,83.461,54.36484451]
[1647000933786,27.41411452,83.514,83.461,54.36484451]
[1647000934588,5.988,83.513,83.461,54.36484451]
[1647000934786,119.7,83.512,83.461,54.36484451]
[1647000935786,6.0,83.511,83.461,54.36484451]
[1647000935987,6.0,83.51,83.461,54.36484451]
[1647000936189,119.7,83.513,83.461,54.36484451]
[1647000936487,125.7,83.512,83.461,54.36484451]
[1647000936688,6.0,83.512,83.461,54.36484451]
[1647000936885,5.988,83.518,83.461,54.36484451]
[1647000937087,6.0,83.517,83.461,54.36484451]
[1647000937690,17.9664,83.51,83.461,54.36484451]
[1647000938095,119.7,83.508,83.444,23.5339]
[1647000938300,119.7,83.508,83.386,4.93408134]
[1647000938500,119.7,83.508,83.331,3.6203]
[1647000938501,119.7,83.506,83.396,23.2767]
[1647000938703,119.7,83.506,83.397,6.0]
[1647000938899,119.7,83.499,83.397,6.0]
[1647000939099,119.7,83.489,83.4,17.9767]
[1647000939500,119.7,83.487,83.4,17.9767]
[1647000939701,5.992,83.486,83.4,17.9767]
[1647000939899,119.7,83.485,83.4,17.9767]
[1647000940101,14.42,83.48,83.4,17.9767]
[1647000940298,5.992,83.479,83.4,17.9767]
[1647000940699,14.42,83.48,83.401,3.04447957]
[1647000940900,14.42,83.48,83.421,59.42316578]
[1647000941205,32.393,83.48,83.421,59.42316578]
[1647000941599,27.41411452,83.479,83.421,59.42316578]
[1647000942201,119.7,83.478,83.421,59.42316578]
[1647000942402,17.9749,83.47,83.421,59.42316578]
[1647000943003,6.0,83.469,83.421,59.42316578]
[1647000943203,27.41411452,83.477,83.421,59.42316578]
[1647000943402,6.0,83.476,83.421,59.42316578]
[1647000943806,6.0,83.476,83.422,6.0]
[1647000944004,6.0,83.476,83.421,59.42316578]
[1647000944204,5.99,83.479,83.421,59.42316578]
[1647000944404,6.0,83.478,83.421,59.42316578]
[1647000944606,5.99,83.477,83.421,59.42316578]
[1647000945407,5.99,83.477,83.43,17.9709]
[1647000945607,6.0,83.478,83.421,59.42316578]
[1647000946007,14.42,83.48,83.421,59.42316578]
[1647000946210,6.0,83.479,83.421,59.42316578]
[1647000946409,6.0,83.479,83.43,17.971]
[1647000946812,5.99,83.478,83.422,24.8542]
[1647000947009,6.0,83.477,83.422,24.8542]
[1647000947211,5.99,83.476,83.422,24.8542]
[1647000947413,6.0,83.477,83.422,24.8542]
[1647000948109,6.0,83.476,83.422,24.8542]
[1647000948310,32.393,83.48,83.422,24.8542]
[1647000948512,6.0,83.479,83.422,24.8542]
[1647000948913,119.7,83.478,83.422,24.8542]
[1647000949110,119.7,83.478,83.42,17.9717]
[1647000949311,119.7,83.469,83.4,17.9772]
[1647000949511,14.42,83.46,83.4,17.9772]
[1647000950115,0.30164159,83.455,83.37,3.04447957]
[1647000950312,119.7,83.429,83.37,3.04447957]
[1647000950516,6.26158984,83.384,83.294,518.59321591]
[1647000950812,14.42,83.38,83.294,518.59321591]
[1647000951213,14.42,83.38,83.296,134.0785243]
[1647000951820,14.42,83.38,83.303,191.54]
[1647000952112,14.42,83.38,83.305,119.7]
[1647000952312,14.42,83.38,83.307,119.7]
[1647000952916,14.42,83.38,83.304,6.0]
[1647000953114,14.42,83.38,83.297,6.0]
[1647000953515,14.42,83.38,83.296,62.2385243]
[1647000953917,14.42,83.38,83.3,17.9931]
[1647000954316,6.0,83.379,83.3,17.9931]
[1647000954916,119.7,83.378,83.3,17.9931]
[1647000955119,119.7,83.376,83.296,62.2385243]
[1647000955316,119.7,83.374,83.296,62.2385243]
[1647000955616,119.7,83.359,83.296,62.2385243]
[1647000955815,6.0,83.358,83.296,62.2385243]
[1647000956016,119.7,83.369,83.296,62.2385243]
[1647000956215,14.42,83.36,83.296,62.2385243]
[1647000956419,6.0,83.359,83.296,62.2385243]
[1647000957951,6.0,83.358,83.296,62.2385243]
[1647000958153,6.0,83.357,83.296,62.2385243]
[1647000958651,119.7,83.356,83.296,62.2385243]
[1647000958850,119.7,83.354,83.296,62.2385243]
[1647000959053,119.7,83.352,83.296,62.2385243]
[1647000959253,119.7,83.349,83.263,22.5939]
[1647000959451,119.7,83.339,83.263,22.5939]
[1647000959852,119.7,83.329,83.251,46.7873]
[1647000960052,14.42,83.32,83.251,46.7873]
[1647000960251,14.42,83.32,83.252,54.02153004]
[1647000962053,14.42,83.32,83.253,6.0]
[1647000962254,119.7,83.319,83.253,6.0]
[1647000963055,119.7,83.317,83.253,6.0]
[1647000963255,6.0,83.318,83.26,18.0053]
[1647000963455,6.0,83.318,83.261,6.0]
[1647000963869,14.42,83.34,83.262,125.0]
[1647000963876,6.003,83.346,83.263,220.8207]
[1647000964057,6.002,83.369,83.263,220.8207]
[1647000964264,6.001,83.379,83.27,71.84]
[1647000964457,6.001,83.379,83.278,71.84]
[1647000964664,134.12,83.39,83.283,191.54]
[1647000964857,119.7,83.379,83.284,46.2394]
[1647000965057,119.7,83.379,83.285,6.0]
[1647000965258,119.7,83.377,83.285,26.46564429]
[1647000965456,119.7,83.375,83.285,56.30210819]
[1647000965657,119.7,83.373,83.286,20.46564429]
[1647000965856,42.61403642,83.407,83.286,20.46564429]
[1647000965857,119.7,83.369,83.287,6.0]
[1647000966057,119.7,83.367,83.286,20.46564429]
[1647000966262,119.7,83.365,83.29,17.9984]
[1647000966457,119.7,83.363,83.291,59.08779153]
[1647000966658,119.7,83.359,83.291,59.08779153]
[1647000966859,119.7,83.357,83.291,59.08779153]
[1647000967261,119.7,83.349,83.25,18.0066]
[1647000967458,119.7,83.347,83.265,52.7301]
[1647000967857,119.7,83.345,83.265,52.7301]
[1647000968058,14.42,83.34,83.265,52.7301]
[1647000968260,6.002,83.339,83.266,57.34063572]
[1647000968461,6.002,83.339,83.267,6.0]
[1647000968657,14.42,83.34,83.266,57.34063572]
[1647000968858,14.42,83.34,83.267,6.0]
[1647000969058,14.42,83.34,83.27,18.0029]
[1647000969259,119.7,83.339,83.27,18.0029]
[1647000969659,119.7,83.337,83.266,57.34063572]
[1647000969857,119.7,83.335,83.266,57.34063572]
[1647000970059,119.7,83.333,83.266,57.34063572]
[1647000970259,14.42,83.33,83.266,57.34063572]
[1647000970862,180.26,83.43,83.331,3.04447957]
[1647000971061,0.00636517,83.504,83.4,12.53150125]
[1647000971259,249.41727383,83.551,83.4,12.53150125]
[1647000971460,5.991,83.533,83.401,11.99]
[1647000971662,5.99,83.505,83.401,26.87280839]
[1647000971859,58.5648383,83.504,83.41,17.958]
[1647000972064,58.5648383,83.504,83.411,6.0]
[1647000972263,5.99,83.503,83.411,6.0]
[1647000972462,5.99,83.503,83.403,6.0]
[1647000972864,5.99,83.503,83.403,3.04447957]
[1647000973063,5.99,83.503,83.42,17.9696]
[1647000973262,58.5648383,83.504,83.42,17.9696]
[1647000974762,5.99,83.503,83.42,17.9696]
[1647000974964,58.5648383,83.504,83.42,17.9696]
[1647000976765,58.5648383,83.504,83.43,14.42]
[1647000976967,5.99,83.503,83.44,17.9649]
[1647000977367,58.5648383,83.504,83.44,32.3849]
[1647000977567,58.5648383,83.504,83.44,14.42]
[1647000977767,5.99,83.503,83.44,14.42]
[1647000977969,58.5648383,83.504,83.44,14.42]
[1647000978367,58.5648383,83.504,83.44,32.3863]
[1647000980172,58.5648383,83.504,83.44,14.42]
[1647000980372,58.5648383,83.504,83.407,18.0998]
[1647000980572,58.5648383,83.504,83.42,14.42]
[1647000980771,58.5648383,83.504,83.421,6.0]
[1647000981175,58.5648383,83.504,83.43,17.9681]
[1647000981376,58.5648383,83.504,83.44,14.42]
[1647000983106,58.5648383,83.504,83.45,17.9627]
[1647000983304,58.5648383,83.504,83.45,32.3827]
[1647000985808,58.5648383,83.504,83.451,5.989]
[1647000986007,58.5648383,83.504,83.45,32.3827]
[1647000986406,58.5648383,83.504,83.45,14.42]
[1647000987608,58.5648383,83.504,83.45,32.3841]
[1647000988408,58.5648383,83.504,83.451,5.989]
[1647000989609,58.5648383,83.504,83.45,14.42]
[1647000991617,119.7,83.503,83.45,14.42]
[1647000991818,119.7,83.499,83.422,3.04447957]
[1647000992025,119.7,83.497,83.42,14.42]
[1647000992218,58.5648383,83.504,83.41,5.99]
[1647000992219,119.7,83.495,83.41,5.99]
[1647000992418,119.7,83.493,83.39,14.42]
[1647000992618,184.73382216,83.491,83.391,5.99]
[1647000993017,119.7,83.479,83.4,17.9756]
[1647000993219,119.7,83.477,83.4,17.9756]
[1647000993621,119.7,83.475,83.39,14.42]
[1647000993818,119.7,83.473,83.39,14.42]
[1647000994019,119.7,83.473,83.38,14.42]
[1647000994245,119.7,83.473,83.381,5.992]
[1647000994443,119.7,83.473,83.381,28.7321]
[1647000994842,119.7,83.476,83.381,28.7321]
[1647000995044,119.7,83.474,83.381,28.7321]
[1647000995250,119.7,83.469,83.39,17.9777]
[1647000995449,119.7,83.469,83.381,28.7321]
[1647000995844,119.7,83.469,83.382,6.0]
[1647000996044,119.7,83.467,83.383,5.993]
[1647000996245,119.7,83.465,83.384,6.0]
[1647000996444,17.9779,83.47,83.384,6.0]
[1647000996445,119.7,83.463,83.385,5.993]
[1647000996949,119.7,83.461,83.385,5.993]
[1647000997847,119.7,83.462,83.385,5.993]
[1647000998246,48.35979929,83.464,83.39,32.3978]
[1647000998446,48.35979929,83.464,83.391,11.993]
[1647000998646,48.35979929,83.464,83.391,15.03747957]
[1647000999347,48.35979929,83.464,83.41,17.9677]
[1647000999549,119.7,83.463,83.4,14.42]
[1647000999748,119.7,83.463,83.391,9.04447957]
[1647001000550,48.35979929,83.464,83.391,9.04447957]
[1647001000749,48.35979929,83.464,83.4,17.976]
[1647001001149,48.35979929,83.464,83.401,5.992]
[1647001001549,119.7,83.463,83.401,5.992]
[1647001002351,119.7,83.463,83.4,14.42]
[1647001002552,48.35979929,83.464,83.391,6.0]
[1647001002752,48.35979929,83.464,83.382,6.0]
[1647001002954,48.35979929,83.464,83.39,14.42]
[1647001003155,48.35979929,83.464,83.391,11.993]
[1647001003554,48.35979929,83.464,83.4,17.9764]
[1647001003754,48.35979929,83.464,83.401,5.992]
[1647001004454,119.7,83.463,83.401,5.992]
[1647001005053,48.35979929,83.464,83.401,5.992]
[1647001005253,119.7,83.463,83.401,5.992]
[1647001005454,119.7,83.459,83.392,5.992]
[1647001005656,119.7,83.459,83.393,6.0]
[1647001005855,119.7,83.459,83.383,5.993]
[1647001006557,119.7,83.449,83.382,5.993]
[1647001006856,119.7,83.447,83.367,5.993]
[1647001007056,119.7,83.447,83.365,5.994]
[1647001008261,119.7,83.439,83.352,5.994]
[1647001009157,119.7,83.446,83.352,5.994]
[1647001009357,5.994,83.445,83.352,5.994]
[1647001009558,5.994,83.447,83.37,17.983]
[1647001009759,119.7,83.446,83.37,17.983]
[1647001009961,119.7,83.444,83.37,17.983]
[1647001010158,5.994,83.447,83.37,17.983]
[1647001010766,59.57278822,83.448,83.371,9.03847957]
[1647001010962,59.57278822,83.448,83.39,17.9712]
[1647001011260,5.993,83.489,83.391,5.993]
[1647001011460,119.7,83.488,83.392,6.0]
[1647001011661,5.992,83.487,83.4,14.42]
[1647001011860,119.7,83.489,83.401,5.992]
[1647001012258,119.7,83.487,83.41,17.9712]
[1647001012661,5.99,83.486,83.41,17.9712]
[1647001013264,5.99,83.487,83.43,17.9692]
[1647001014862,119.7,83.486,83.43,17.9692]
[1647001015160,5.99,83.485,83.43,17.9692]
[1647001015360,5.99,83.487,83.43,17.9692]
[1647001015560,58.71638708,83.488,83.43,17.9692]
[1647001016162,58.71638708,83.488,83.43,32.3892]
[1647001016962,58.71638708,83.488,83.431,5.99]
[1647001017161,58.71638708,83.488,83.44,17.9674]
[1647001017363,5.99,83.506,83.44,17.9674]
[1647001017570,5.989,83.518,83.45,14.42]
[1647001017763,21.18829174,83.549,83.451,5.989]
[1647001017963,17.949,83.549,83.452,45.8372]
[1647001018164,17.949,83.549,83.453,5.987]
[1647001018365,56.54155063,83.548,83.46,17.9567]
[1647001018568,5.987,83.547,83.461,11.987]
[1647001018768,5.987,83.547,83.47,14.42]
[1647001018967,48.1364,83.569,83.471,11.987]
[1647001018968,5.987,83.568,83.471,11.987]
[1647001019166,48.1364,83.569,83.472,22.575]
[1647001019365,119.7,83.568,83.473,11.986]
[1647001019969,119.7,83.566,83.473,11.986]
[1647001020166,17.9562,83.56,83.473,11.986]
[1647001020493,119.7,83.559,83.473,11.986]
[1647001020668,119.7,83.557,83.473,11.986]
[1647001020868,119.7,83.555,83.473,11.986]
[1647001021075,119.7,83.553,83.473,11.986]
[1647001021269,119.7,83.551,83.473,11.986]
[1647001022268,5.987,83.55,83.473,11.986]
[1647001022468,23.9451,83.55,83.473,11.986]
[1647001022674,17.9581,83.55,83.473,11.986]
[1647001022869,118.4,83.549,83.473,11.986]
[1647001023071,124.387,83.549,83.473,11.986]
[1647001023673,17.96,83.54,83.473,5.986]
[1647001024070,118.4,83.538,83.473,5.986]
[1647001024872,17.9622,83.53,83.473,5.986]
[1647001025073,118.4,83.529,83.473,5.986]
[1647001026072,118.4,83.528,83.473,5.986]
[1647001026280,119.7,83.537,83.473,5.986]
[1647001027176,17.9625,83.53,83.473,5.986]
[1647001027878,119.7,83.538,83.473,5.986]
[1647001028115,47.85114601,83.539,83.48,17.9573]
[1647001028502,47.85114601,83.539,83.48,32.3773]
[1647001030306,5.987,83.559,83.48,32.3773]
[1647001030512,5.987,83.559,83.481,9.04447957]
[1647001030706,5.986,83.58,83.5,17.9489]
[1647001030907,5.985,83.593,83.51,14.42]
[1647001031109,119.7,83.592,83.511,24.3377]
[1647001031412,49.18219571,83.59,83.511,24.3377]
[1647001031607,67.13139571,83.59,83.511,24.3377]
[1647001033008,119.7,83.589,83.511,24.3377]
[1647001033508,125.684,83.589,83.511,24.3377]
[1647001033708,119.7,83.579,83.511,24.3377]
[1647001034810,17.9536,83.57,83.511,24.3377]
[1647001035013,119.7,83.567,83.491,24.5672]
[1647001035210,119.7,83.567,83.474,24.9843]
[1647001035411,119.7,83.565,83.474,24.9843]
[1647001035611,14.42,83.56,83.44,3.04447957]
[1647001035913,119.7,83.547,83.44,43.88260251]
[1647001036211,119.7,83.545,83.441,24.9843]
[1647001036415,119.7,83.543,83.441,24.9843]
[1647001036712,119.7,83.541,83.441,24.9843]
[1647001037112,57.64329772,83.529,83.46,17.9628]
[1647001038116,119.7,83.528,83.46,17.9628]
[1647001038512,17.9642,83.52,83.46,17.9628]
[1647001038916,119.7,83.528,83.46,17.9628]
[1647001039512,57.64329772,83.529,83.46,17.9628]
[1647001040114,57.64329772,83.529,83.45,59.8685]
[1647001040313,5.987,83.558,83.461,26.41812294]
[1647001040515,5.986,83.568,83.47,14.42]
[1647001040714,5.986,83.568,83.474,50.46332294]
[1647001041413,17.9552,83.56,83.48,17.959]
[1647001041618,125.686,83.559,83.48,17.959]
[1647001042617,173.44619788,83.549,83.474,30.0312]
[1647001042819,173.44619788,83.549,83.474,24.0452]
[1647001042820,119.7,83.547,83.474,24.0452]
[1647001043016,119.7,83.545,83.474,24.0452]
[1647001043217,119.7,83.543,83.474,24.0452]
[1647001043418,119.7,83.541,83.473,400.0]
[1647001043619,175.25658095,83.529,83.473,400.0]
[1647001044820,55.55658095,83.529,83.473,400.0]
[1647001045518,119.7,83.528,83.473,400.0]
[1647001045817,119.7,83.526,83.473,400.0]
[1647001046017,5.988,83.528,83.473,400.0]
[1647001046219,17.9636,83.52,83.473,400.0]
[1647001046421,119.7,83.519,83.473,400.0]
[1647001046825,119.7,83.517,83.473,400.0]
[1647001047020,9.03247957,83.518,83.473,400.0]
[1647001047021,119.7,83.515,83.473,256.3776559]
[1647001047222,119.7,83.509,83.473,256.3776559]
[1647001047420,119.7,83.507,83.473,256.3776559]
[1647001047620,119.7,83.505,83.473,247.20829875]
[1647001047819,119.7,83.503,83.473,247.20829875]
[1647001048019,119.7,83.501,83.473,247.20829875]
[1647001048419,119.7,83.499,83.473,247.20829875]
[1647001048621,119.7,83.489,83.473,213.86518181]
[1647001048820,119.7,83.489,83.473,203.33048226]
[1647001049219,3.04447957,83.488,83.473,203.33048226]
[1647001049920,3.04447957,83.488,83.473,197.12032673]
[1647001052927,3.04447957,83.499,83.473,197.12032673]
[1647001053127,3.04447957,83.515,83.473,197.12032673]
[1647001053926,119.7,83.515,83.473,197.12032673]
[1647001054129,17.968,83.5,83.473,197.12032673]
[1647001054325,119.7,83.499,83.473,197.12032673]
[1647001055332,5.989,83.509,83.473,197.12032673]
[1647001055333,119.7,83.489,83.473,197.12032673]
[1647001055732,5.989,83.509,83.473,197.12032673]
[1647001055934,119.7,83.511,83.473,197.12032673]
[1647001056333,17.9683,83.5,83.473,197.12032673]
[1647001059237,119.7,83.499,83.473,197.12032673]
[1647001059434,119.7,83.489,83.473,197.12032673]
[1647001062468,17.976,83.49,83.473,197.12032673]
[1647001062868,17.9676,83.5,83.473,197.12032673]
[1647001064065,119.7,83.513,83.473,197.12032673]
[1647001064265,5.988,83.521,83.473,197.12032673]
[1647001064465,17.8914,83.564,83.473,197.12032673]
[1647001064668,119.7,83.563,83.473,197.12032673]
[1647001065064,119.7,83.561,83.473,197.12032673]
[1647001065264,119.7,83.561,83.474,48.4925]
[1647001065564,5.986,83.56,83.48,17.9592]
[1647001065864,5.986,83.561,83.48,17.9592]
[1647001066064,5.986,83.571,83.48,17.9592]
[1647001066265,119.7,83.57,83.48,17.9592]
[1647001066465,119.7,83.559,83.48,17.9592]
[1647001067567,119.7,83.568,83.48,17.9592]
[1647001067767,119.7,83.566,83.48,17.9592]
[1647001068172,17.9582,83.55,83.48,17.9592]
[1647001068468,17.9582,83.55,83.48,32.3792]
[1647001068669,119.7,83.568,83.48,32.3792]
[1647001068868,119.7,83.566,83.48,32.3792]
[1647001069568,119.7,83.559,83.48,32.3792]
[1647001069768,119.7,83.557,83.48,32.3792]
[1647001069971,119.7,83.555,83.474,48.4925]
[1647001070371,3.04447957,83.554,83.474,48.4925]
[1647001070572,17.9577,83.55,83.474,48.4925]
[1647001070770,119.7,83.548,83.474,48.4925]
[1647001070970,119.7,83.539,83.474,48.4925]
[1647001071169,119.7,83.537,83.474,48.4925]
[1647001071372,119.7,83.537,83.473,197.12032673]
[1647001071570,119.7,83.535,83.473,197.12032673]
[1647001071771,119.7,83.529,83.473,197.12032673]
[1647001072070,119.7,83.527,83.473,197.12032673]
[1647001072271,119.7,83.525,83.473,262.92153872]
[1647001072672,119.7,83.525,83.473,197.12032673]
[1647001073180,119.7,83.519,83.473,197.12032673]
[1647001074376,119.7,83.518,83.473,197.12032673]
[1647001075376,17.9655,83.51,83.473,197.12032673]
[1647001078376,119.7,83.518,83.473,197.12032673]
[1647001078676,119.7,83.516,83.473,197.12032673]
[1647001078877,17.9639,83.52,83.473,197.12032673]
[1647001078878,119.7,83.514,83.473,197.12032673]
[1647001080176,17.9653,83.51,83.473,197.12032673]
[1647001080381,5.988,83.549,83.48,17.9607]
[1647001080580,5.986,83.554,83.481,49.60759295]
[1647001080978,5.986,83.567,83.481,49.60759295]
[1647001081378,119.7,83.566,83.481,49.60759295]
[1647001081580,119.7,83.564,83.481,49.60759295]
[1647001081777,119.7,83.562,83.481,49.60759295]
[1647001081980,5.986,83.561,83.481,49.60759295]
[1647001082180,17.957,83.55,83.49,17.957]
[1647001082379,5.986,83.549,83.49,17.957]
[1647001083180,17.957,83.55,83.49,17.957]
[1647001083782,17.9549,83.56,83.49,17.957]
[1647001084184,119.7,83.562,83.49,17.957]
[1647001084384,233.4,83.582,83.49,17.957]
[1647001084684,233.4,83.582,83.51,17.9506]
[1647001084883,3.04447957,83.585,83.51,17.9506]
[1647001084884,17.9516,83.58,83.511,59.95569638]